Cogmind - Beta 14 @@@ ROGUE MODE // 2024.10.05 @ 13:54:11 Player: Corvi Result: Destroyed by SY-GTX(R) with Subdweller Beam Cannon Performance ------------- Evolutions (0) 0 Regions Visited (2) 400 Robots Destroyed (25) 125 Value Destroyed (541) 541 Prototype IDs (0) 0 Alien Tech Used (0) 0 Bonus (0) 0 TOTAL SCORE: 1066 Bonus ------- None Cogmind --------- Core Integrity 0/250 Matter 9/300 Energy 246/250 System Corruption 6% Temperature Cool (11) Movement Walking (190) Ox1 Location -10/Subcaves Parts ------- > --- POWER (1) -------- Ion Engine > --- PROPULSION (2) --- Aluminum Leg Aluminum Leg > --- UTILITY (2) ------ Heat Sink Large Storage Unit > --- WEAPON (2) ------- Particle Gun Rocket Launcher > --- INVENTORY (15) --- Light Ion Engine ECM Suite Recalibrator Particle Gun Particle Gun Particle Gun Light Assault Rifle Light Assault Rifle Light Assault Rifle Light Assault Rifle Rocket Launcher Peak State ------------ > --- POWER ------------ Ion Engine > --- PROPULSION ------- Light Treads Light Treads > --- UTILITY ---------- Heat Sink Large Storage Unit > --- WEAPON ----------- Particle Gun Particle Gun > --- INVENTORY -------- Light Ion Engine Aluminum Leg Aluminum Leg ECM Suite Recalibrator Particle Gun Particle Gun Light Assault Rifle Light Assault Rifle Rocket Launcher Rocket Launcher Rocket Launcher [Rating: 11] Favorites ----------- Power Ion Engine Engine Ion Engine Propulsion Light Treads Treads Light Treads Leg Aluminum Leg Utility Heat Sink Device Heat Sink Storage Large Storage Unit Weapon Particle Gun Energy Gun Particle Gun Ballistic Gun Light Assault Rifle Launcher Rocket Launcher Build | -11 -10 -10 ------- Run | Yrd Mat Sub Slots Evolved . | . . . Power . | . . . Propulsion . | . . . Utility . | . . . Weapon . | . . . Parts Attached 28 | 6 13 9 Power 2 | 1 1 . Engine 2 | 1 1 . Core . | . . . Reactor . | . . . Propulsion 4 | 2 . 2 Treads 2 | 2 . . Leg 2 | . . 2 Wheel . | . . . Hover . | . . . Flight . | . . . Utility 6 | 1 5 . Device 1 | . 1 . Storage 5 | 1 4 . Processor . | . . . Hackware . | . . . Protection . | . . . Artifact . | . . . Weapon 16 | 2 7 7 Energy Gun 6 | 1 2 3 Energy Cannon . | . . . Ballistic Gun 4 | 1 3 . Ballistic Cannon . | . . . Launcher 6 | . 2 4 Special Weapon . | . . . Impact Weapon . | . . . Slashing Weapon . | . . . Piercing Weapon . | . . . Special Melee Weapon . | . . . Unidentified Prototypes . | . . . Parts Lost 2 | . . 2 Power . | . . . Propulsion 1 | . . 1 Utility . | . . . Weapon 1 | . . 1 Highest Loss Streak 1 | . . 1 To Critical Strikes . | . . . Average Slot Usage (%) 97 | . 96 99 Engine 14 | . 14 14 Treads 26 | . 28 22 Leg 1 | . . 4 Device 13 | . 12 14 Storage 14 | . 14 14 Energy Gun 16 | . 12 24 Ballistic Gun 6 | . 9 . Launcher 4 | . 4 3 Peak Build Rating 11 | 6 11 11 Average Rating 9 | 4 8 10 On Entrance 5 | . 6 11 Naked Turns . | . . . Heaviest Build 33 | 11 32 33 Greatest Support 40 | 40 40 40 Greatest Overweight (x) 1 | . . 1 Average Overweight (x) . | . . . Largest Inventory Capacity 25 | 8 25 15 Average Capacity 12 | 7 12 15 Most Carried 14 | 3 14 14 Average Carried 10 | 1 9 13 Final Capacity 15 | 8 15 15 Final Carried 14 | 3 14 11 Class Distribution -------------------- 100% | Mutant Dominant Class ---------------- Mutant | -10/Materials Mutant | -10/Subcaves Resources | -11 -10 -10 ----------- Run | Yrd Mat Sub Matter Collected 683 | 236 326 121 Remotely . | . . . Salvage Created 317 | . 223 94 Parts 25 | . 23 2 Haulers Intercepted . | . . . Recyclers Shooed . | . . . Parts Field Recycled . | . . . Retrieved Matter . | . . . Parts Self-Destructed 4 | . . 4 Prevented . | . . . Kills | -11 -10 -10 ------- Run | Yrd Mat Sub Combat Hostiles Destroyed 20 | . 13 7 Guns 2 | . 1 1 AOE 17 | . 11 6 Classes Destroyed 8 | . 5 3 Worker 1 | . 1 . Mechanic 1 | . 1 . Turret 2 | . . 2 Watcher 1 | . 1 . Swarmer 11 | . 9 2 Grunt 4 | . 4 . Sentry 1 | . . 1 Subdweller 4 | . . 4 Best Kill Streak 6 | . 6 2 Combat Bots Only 4 | . 4 2 Max Kills in Single Turn 3 | . 3 1 Gunslinging . | . . . Exploded 3 | . 3 1 Melee . | . . . Uniques/NPCs Destroyed . | . . . Combat | -11 -10 -10 -------- Run | Yrd Mat Sub Hostile Shots Fired 114 | . 34 80 Missed 39 | . 6 33 Damage Taken 970 | . 278 692 Core 262 | . 16 246 Absorbed by Shields . | . . . Core Remaining (%) 100 | 100 . . Volleys Fired 76 | . 43 33 Largest 2 | . 2 2 Hottest 130 | . 130 130 Shots Fired 101 | . 63 38 Gun 66 | . 55 11 Cannon . | . . . Launcher 35 | . 8 27 Special . | . . . Kinetic 30 | . 30 . Thermal 24 | . 13 11 Explosive 35 | . 8 27 Electromagnetic 12 | . 12 . Robot Hit Streak 8 | . 8 7 Robot Miss Streak 5 | . 5 3 Penetration Max . | . . . Secondary Targets . | . . . Shots Hit Robots 58 | . 38 20 Core Hits 47 | . 24 23 Critical Kills . | . . . Critical Parts Destroyed . | . . . Critical Strikes 1 | . 1 . Corrupt 1 | . 1 . Melee Attacks . | . . . Impact . | . . . Slashing . | . . . Piercing . | . . . Sneak Attacks . | . . . Combat Hostiles . | . . . Follow-up Attacks . | . . . Damage Inflicted 2301 | . 1105 1196 Guns 515 | . 388 127 Cannons . | . . . Explosions 1781 | . 712 1069 Melee . | . . . Ramming 5 | . 5 . Kinetic 159 | . 159 . Thermal 308 | . 181 127 Explosive 1737 | . 668 1069 Electromagnetic 92 | . 92 . Impact . | . . . Slashing . | . . . Piercing . | . . . Highest Corruption 6 | . 6 6 Average Corruption 5 | . 4 6 Corruption Purged . | . . . Corruption Blocked . | . . . Effects 63 | . 36 27 Message Errors 21 | . 10 11 Matter Fused 13 | . 8 5 Heat Flow Errors 6 | . 5 1 Energy Discharges 9 | . 4 5 Parts Rejected 1 | . . 1 Data Loss (minor) 5 | . 5 . Data Loss (major) 3 | . 1 2 Misfires 3 | . 2 1 Alerts 1 | . 1 . Weapon Failures 1 | . . 1 Overload Shots . | . . . Overflow Damage 2 | . . 2 Projectiles . | . . . Explosions 2 | . . 2 Melee . | . . . Knockbacks . | . . . Impact . | . . . Kinetic . | . . . Secondary . | . . . Self-Inflicted Damage 37 | . . 37 Shots 1 | . . 1 Rammed 1 | . 1 . Targets Rammed 1 | . 1 . Kicked . | . . . Crushed . | . . . Highest Temperature 270 | . 270 58 Average Temperature 84 | . 90 13 Received Heat Transfer 375 | . 114 261 Siege Activations . | . . . Robots Corrupted . | . . . Combat Hostiles . | . . . Parts Fried . | . . . Impact Corruptions . | . . . Robots Melted 1 | . 1 . Combat Hostiles 1 | . 1 . Parts Melted . | . . . Heat Transferred 679 | . 383 296 Parts Sabotaged . | . . . Parts Stolen . | . . . Parts Stripped . | . . . Power Chain Reactions 1 | . 1 . Alert | -11 -10 -10 ------- Run | Yrd Mat Sub Peak Influence 262 | . 262 . Initial . | . . . Average 77 | . 81 . Maximum Alert Level 1 | . 1 . Low Security (%) 86 | 100 86 . Level 1 13 | . 13 . Level 2 . | . . . Level 3 . | . . . Level 4 . | . . . Level 5 . | . . . High Security . | . . . Max Security . | . . . Squads Dispatched 2 | . 2 . Investigation 1 | . 1 . Extermination . | . . . Reinforcement 1 | . 1 . Assault . | . . . Garrison . | . . . Intercept . | . . . Searches Triggered . | . . . Construction Impeded . | . . . Haulers Reinforced . | . . . Active Scanning Responses . | . . . Cargo Convoy Interrupts . | . . . Stealth | -11 -10 -10 --------- Run | Yrd Mat Sub Distress Signals 3 | . 3 . Communications Jammed . | . . . Distress Signals . | . . . Times Spotted 38 | . 23 15 Peak Tracking Total 4 | . 4 3 Tactical Retreats 3 | . 1 2 Traps | -11 -10 -10 ------- Run | Yrd Mat Sub Traps Triggered 3 | . 3 . Indirectly . | . . . Trap Hack Attempts . | . . . Triggered . | . . . Disarmed . | . . . Reprogrammed . | . . . Reused . | . . . Traps Extracted . | . . . Installed . | . . . Triggered . | . . . Machines | -11 -10 -10 ---------- Run | Yrd Mat Sub Machines Disabled 4 | . . 4 Max in Single Turn 2 | . . 2 Machines Repaired . | . . . Machines Dismantled . | . . . Machines Sabotaged . | . . . Overloaded Fab Kills . | . . . Hacking | -11 -10 -10 --------- Run | Yrd Mat Sub Machines Accessed 6 | . 5 1 Terminals 3 | . 3 . Fabricators . | . . . Repair Stations 1 | . 1 . Recycling Units 1 | . 1 . Scanalyzers . | . . . Garrison Access . | . . . Total Hacks 15 | . 14 1 Successful 6 | . 5 1 Failed 9 | . 9 . Catastrophic . | . . . Database Lockouts . | . . . Manual 11 | . 11 . Terminals 10 | . 10 . Fabricators . | . . . Repair Stations 1 | . 1 . Recycling Units 3 | . 3 . Scanalyzers . | . . . Garrison Access . | . . . Terminal Hacks 3 | . 2 1 Part Schematic 1 | . 1 . Robot Analysis 1 | . 1 . Open Door 1 | . . 1 Fabricator Hacks . | . . . Repair Station Hacks . | . . . Recycling Unit Hacks 1 | . 1 . Report Inventory 1 | . 1 . Scanalyzer . | . . . Garrison Access Hacks . | . . . Unauthorized Hacks 2 | . 2 . Terminals 1 | . 1 . Operators 1 | . 1 . Fabricators . | . . . Repair Stations . | . . . Recycling Units 1 | . 1 . Recyclers 1 | . 1 . Scanalyzers . | . . . Garrison Access . | . . . Data Cores Recovered . | . . . Used . | . . . Hacking Detections 5 | . 5 . Full Trace Events 1 | . 1 . Feedback Events . | . . . Feedback Blocked . | . . . Robot Schematics Acquired . | . . . Robots Built . | . . . Authchips . | . . . Time . | . . . Total Robot Build Rating . | . . . Part Schematics Acquired 1 | . 1 . Parts Built . | . . . Authchips . | . . . Time . | . . . Total Part Build Rating . | . . . Parts Repaired . | . . . Time . | . . . Parts Recycled . | . . . Recycled Matter . | . . . Retrieved Matter . | . . . Retrieved Components . | . . . Parts Scanalyzed . | . . . Part Schematics Acquired . | . . . Parts Damaged . | . . . Bothacking | -11 -10 -10 ------------ Run | Yrd Mat Sub Used RIF Installer . | . . . Robots Hacked . | . . . Non-combat . | . . . Combat . | . . . Robot Hacks Applied . | . . . Relay Couplers Released . | . . . Fabnet Peak Effective % . | . . . Robots Rewired . | . . . Allies Hacked . | . . . Hacks Repelled . | . . . Allies | -11 -10 -10 -------- Run | Yrd Mat Sub Total Allies . | . . . Largest Group . | . . . Highest-Rated Group . | . . . Highest-Rated Ally . | . . . Total Orders . | . . . Ally Attacks . | . . . Total Damage . | . . . Kills . | . . . Allies Corrupted . | . . . Allies Melted . | . . . Intel | -11 -10 -10 ------- Run | Yrd Mat Sub Robot Analysis Total 1 | . 1 . Derelict Logs Recovered 3 | . . 3 Drone Launches . | . . . Drone Recoveries . | . . . Exploration | -11 -10 -10 ------------- Run | Yrd Mat Sub Turns Passed 2844 | 95 1825 924 Spaces Moved 1592 | 58 1027 507 Core 8 | 8 . . Treads 1512 | 50 1027 435 Legs 72 | . . 72 Wheels . | . . . Hover . | . . . Flight . | . . . Fastest Speed 50 | 50 160 160 Average Speed 160 | 144 160 164 Slowest Speed 240 | 160 160 240 Overloaded Moves . | . . . Propulsion Burnouts . | . . . Robots Hopped . | . . . Cave-ins Triggered . | . . . Exploration Rate (%) 41 | 4 78 42 Regions Visited 2 Branch Regions 1 Pre-discovered Areas 1 | . . 1 Known Exits Taken . | . . . Unknown Exits Taken 2 | 1 1 . Scrap Searched . | . . . Spaces Dug 7 | . . 7 Terrain Destroyed 215 | . 75 140 Melee . | . . . Projectile . | . . . AOE 215 | . 75 140 Terrain Rammed . | . . . Walls Destroyed . | . . . Machines Disabled . | . . . Actions | -11 -10 -10 --------- Run | Yrd Mat Sub Total 1779 | 66 1155 558 Wait 53 | . 45 8 Move 1590 | 57 1026 507 Hop . | . . . Pick Up 17 | 3 14 . Fast Attach 12 | 6 5 1 Attach 5 | . 2 3 Detach 2 | . 2 . Swap 11 | . 6 5 Drop 12 | . 11 1 Fire 76 | . 43 33 Melee . | . . . Ram . | . . . Kick . | . . . Crush 1 | . 1 . Escape Stasis . | . . . Rewire . | . . . Trap . | . . . Miscellaneous . | . . . Route ------- -11/Scrapyard -10/Materials (discovered 5 exits: [*Mat x3] / [*Min] / *Sub) -10/Subcaves (discovered 3 exits: [*Mat x2] / [*Rec]) History --------- Turn | Location | Event 4 | -11/Scrapyard | Discovered new exit (range 15) 96 | -11/Scrapyard | Entered Materials 305 | -10/Materials | Build established: Mutant 406 | -10/Materials | Discovered new exit (range 12) 534 | -10/Materials | Discovered new exit (range 8) 661 | -10/Materials | Discovered new exit (range 14) 796 | -10/Materials | Derelicts attacked the area 974 | -10/Materials | Discovered new exit (range 16) 1598 | -10/Materials | Discovered new exit (range 10) 1921 | -10/Materials | Entered Subcaves 1949 | -10/Subcaves | Learned location of 1 exit from Materials 1968 | -10/Subcaves | Learned location of Zion (-7) 1993 | -10/Subcaves | Discovered new exit (range 15) 2033 | -10/Subcaves | Discovered new exit (range 8) 2040 | -10/Subcaves | Learned 2 Materials zone layouts 2686 | -10/Subcaves | Discovered new exit (range 15) 2790 | -10/Subcaves | Ambushed by Subdweller buried in earth 2793 | -10/Subcaves | Core integrity fell below 50% 2801 | -10/Subcaves | Ambushed by Subdweller buried in earth 2813 | -10/Subcaves | Core integrity fell below 20% 2845 | -10/Subcaves | Destroyed by SY-GTX(R) with Subdweller Beam Cannon Last Messages --------------- Dropped Lgt. Treads. EXIT=FOUND The unstable cave ceiling collapses. Subatomizers dissect the Sub. Optics, destroying it. Acquired 37 matter. The unstable cave ceiling collapses. Acquired 7 matter. Subatomizers dissect the Sub. Power Source. System corrupted: Energy discharge (-70). S6D5UO G0BIINWQI KN 3ZKR OW-SR7(R) destroyed. 3Q-53B(R): "ARGHSUB!" The unstable cave ceiling collapses. Rocket Launcher destroyed. The unstable cave ceiling collapses. BJ-37J(R): "ARGHSUB!" The unstable cave ceiling collapses. 3Q-53B(R) destroyed. 73-UJQ(R) affixes Scrap Shield Fragment to Scrap Shield. SY-GTX(R) emerges from concealment. Map ----- +----------------------------------------------------+ | ?????????????????????????????????????????????????? | | ?????????????????????????????????????????????????? | | ?????????????????????????????????????????????????? | | ?????????????????????????????????????????????????? | | ?????????????????????????????????????????????????? | | ?????????????????????????????????????????????????? | | ?????????????????????????????????????????????????? | | ???????????##??????????????????????????????####??? | | ??????????## ??????????####???????????????## #### | | ??????????# ?????????# ######?????????## | | ??????????# #????????# ##????????# | | ??????????# ???????# #??????### | | ?????????## ???????# #?????### | | ?????????# ???????# #????## ### | | ?????????# ??????## #????# # | | ?????????# ????## ##???# | | ????????## #???# #???# # | | ???????## ##?# ##???## ### | | ???????# #?# ##????##### ###?? | | ?????# ### #????## ##### | | ?????" ## R R #####????# | | ????? ##??###??## = # | | ????? #?### #### ## | | ????? ## ##?# # # ####? | | ?????? % ?# ##### # #???? | | ?????? ?## @## # # # #???? | | ?????? ??## ##### | | ??????? ????# # | | ??????? ????# < | | ???????? ????# ### & | | ???????? ###?????# ##?# ## ##& * | | ????????? #????????###?# ## ## & #### | | ?????????????????????????# ### ### ##???? | | ????????????????????????# #?## # #?# #????? | | ???????????????????????# ##??# # ## ????? | | ?????????????????????? ????### ???? | | ?????????????????????? ??????## ## ##??? | | ????????????????????? ???????###? ## #???? | | ????????????????????? ##??????????? ## #???? | | ?????????????????????? ????????????? #? ???? | | ?????????????????????? #????????????? ??### ???? | | ?????????????????????????????????????? ?????# ??? | | ?????????????????????????????????????? ??????? ??? | | ????????????????????????????????????? ???????????? | | ?????????????????????????????????????????????????? | | ?????????????????????????????????????????????????? | | ?????????????????????????????????????????????????? | | ?????????????????????????????????????????????????? | | ?????????????????????????????????????????????????? | | ?????????????????????????????????????????????????? | +----------------------------------------------------+ Best States ------------- Heat Dissipation 35 Energy Generation 10 Energy Capacity 250 Matter Stores 300 Matter Capacity 300 Sight Range 16 Terrain Scan Density 10 Evasion (%) 40 Recoil Reduction 2 Item Schematics ----------------- Flight Unit | -10/Materials | Hacked Robot Schematics ------------------ None Fabricated ------------ Nothing Alien Tech Used ----------------- None Achievements -------------- None Challenges ------------ None Game ------ Seed ScrapImprinterArray Manual? 0 Play Time 00:22:54 Cumulative 46.1 hours Start 2024.10.05 @ 13:25:53 End 2024.10.05 @ 13:54:11 Sessions 1 Manual Loads 0 Difficulty Rogue Special Mode None Game No. 57 Rogue 57 Adventurer 0 Explorer 0 Win Type - Total 0 Types 0/0/0/0/0/0/0/0/0 Lore% 29 Gallery% 40 Achievement% 35 Wizard Run 0 Options --------- Layout 0 ASCII 0 Keyboard 0 Movement Arrows Keybinds 0 Fullscreen 1 Font 18/SmallcapsGlow Map View 76x50 Zoom Use 0% Tactical HUD 0 Map Filters NONE Filters NONE Steam 0 RUN: 22a8385b-2e14-4173-8f4c-427a69025005